[Event "Titled Tuesday Blitz April 18 Late 2023"]
[White "Rosen, Eric"]
[Black "Makridis, Dimitrios"]
[WhiteFideId "2032562"]
[BlackFideId "25864475"]
[WhiteElo "2331"]
[BlackElo "2277"]
[Result "0-1"]
[Round "09"]
[TimeControl "180+2"]
[Date "2023.04.18"]
[WhiteClock "0:00:01"]
[BlackClock "0:00:03"]

1. d4 {[%clk 0:03:00]}  Nf6 {[%clk 0:02:56]} 2. Bf4 {[%clk 0:03:00]}  g6 {[%clk 0:02:52]} 3. Nc3 {[%clk 0:03:00]}  Bg7 {[%clk 0:02:52]} 4. e4 {[%clk 0:03:00]}  d5 {[%clk 0:02:52]} 5. e5 {[%clk 0:03:00]}  Ne4 {[%clk 0:02:52]} 6. Nce2 {[%clk 0:03:01]}  f6 {[%clk 0:02:50]} 7. f3 {[%clk 0:03:00]}  fxe5 {[%clk 0:02:47]} 8. dxe5 {[%clk 0:02:59]}  Nc5 {[%clk 0:02:46]} 9. Nd4 {[%clk 0:02:49]}  Nc6 {[%clk 0:02:42]} 10. Bb5 {[%clk 0:02:45]}  Bd7 {[%clk 0:02:38]} 11. Nge2 {[%clk 0:02:36]}  Nxe5 {[%clk 0:02:28]} 12. b4 {[%clk 0:02:18]}  Bxb5 {[%clk 0:02:23]} 13. Nxb5 {[%clk 0:02:13]}  Ne6 {[%clk 0:02:23]} 14. Bg3 {[%clk 0:01:53]}  c6 {[%clk 0:02:14]} 15. Nbd4 {[%clk 0:01:52]}  Nxd4 {[%clk 0:02:07]} 16. Nxd4 {[%clk 0:01:52]}  Qd7 {[%clk 0:02:07]} 17. c3 {[%clk 0:01:41]}  Nc4 {[%clk 0:02:02]} 18. Qe2 {[%clk 0:01:30]}  e5 {[%clk 0:02:02]} 19. Nb3 {[%clk 0:01:30]}  O-O {[%clk 0:02:00]} 20. Rd1 {[%clk 0:01:28]}  Qf7 {[%clk 0:01:57]} 21. O-O {[%clk 0:01:27]}  a5 {[%clk 0:01:56]} 22. bxa5 {[%clk 0:01:15]}  Qf5 {[%clk 0:01:46]} 23. Rfe1 {[%clk 0:01:13]}  Rfe8 {[%clk 0:01:41]} 24. Rb1 {[%clk 0:01:05]}  e4 {[%clk 0:01:29]} 25. fxe4 {[%clk 0:01:04]}  Rxe4 {[%clk 0:01:29]} 26. Qf3 {[%clk 0:00:55]}  Qxf3 {[%clk 0:01:24]} 27. gxf3 {[%clk 0:00:55]}  Rxe1+ {[%clk 0:01:23]} 28. Bxe1 {[%clk 0:00:56]}  Bf8 {[%clk 0:00:38]} 29. Kf1 {[%clk 0:00:45]}  Bd6 {[%clk 0:00:36]} 30. Bg3 {[%clk 0:00:41]}  Be7 {[%clk 0:00:26]} 31. Ke2 {[%clk 0:00:37]}  Kf7 {[%clk 0:00:26]} 32. Kd3 {[%clk 0:00:34]}  Ke8 {[%clk 0:00:25]} 33. h4 {[%clk 0:00:20]}  Kd7 {[%clk 0:00:22]} 34. h5 {[%clk 0:00:21]}  gxh5 {[%clk 0:00:23]} 35. Rh1 {[%clk 0:00:19]}  Rf8 {[%clk 0:00:21]} 36. Ke2 {[%clk 0:00:18]}  Rg8 {[%clk 0:00:19]} 37. Bf2 {[%clk 0:00:15]}  Rg5 {[%clk 0:00:12]} 38. f4 {[%clk 0:00:08]}  Rf5 {[%clk 0:00:12]} 39. Nd4 {[%clk 0:00:09]}  Rxf4 {[%clk 0:00:12]} 40. Rxh5 {[%clk 0:00:09]}  Rf7 {[%clk 0:00:11]} 41. Nb3 {[%clk 0:00:07]}  Bd6 {[%clk 0:00:09]} 42. Bd4 {[%clk 0:00:07]}  Re7+ {[%clk 0:00:08]} 43. Kd3 {[%clk 0:00:04]}  Nb2+ {[%clk 0:00:09]} 44. Kc2 {[%clk 0:00:04]}  Nc4 {[%clk 0:00:09]} 45. Rh6 {[%clk 0:00:03]}  Rf7 {[%clk 0:00:08]} 46. a4 {[%clk 0:00:03]}  Bf8 {[%clk 0:00:06]} 47. Rh5 {[%clk 0:00:02]}  h6 {[%clk 0:00:07]} 48. Rh3 {[%clk 0:00:03]}  Nd6 {[%clk 0:00:06]} 49. Nc5+ {[%clk 0:00:03]}  Kc8 {[%clk 0:00:06]} 50. Ne6 {[%clk 0:00:03]}  Nf5 {[%clk 0:00:06]} 51. Nxf8 {[%clk 0:00:03]}  Rxf8 {[%clk 0:00:07]} 52. Kd3 {[%clk 0:00:03]}  Nxd4 {[%clk 0:00:06]} 53. cxd4 {[%clk 0:00:03]}  Rf6 {[%clk 0:00:06]} 54. Ke3 {[%clk 0:00:02]}  Kb8 {[%clk 0:00:07]} 55. Rh1 {[%clk 0:00:02]}  Ka7 {[%clk 0:00:07]} 56. Rb1 {[%clk 0:00:02]}  Rf7 {[%clk 0:00:07]} 57. Rh1 {[%clk 0:00:01]}  Rh7 {[%clk 0:00:07]} 58. Kf4 {[%clk 0:00:02]}  Ka6 {[%clk 0:00:08]} 59. Kf5 {[%clk 0:00:01]}  Kxa5 {[%clk 0:00:08]} 60. Kg6 {[%clk 0:00:02]}  Rh8 {[%clk 0:00:09]} 61. Kg7 {[%clk 0:00:02]}  Re8 {[%clk 0:00:08]} 62. Rb1 {[%clk 0:00:03]}  Re7+ {[%clk 0:00:07]} 63. Kxh6 {[%clk 0:00:03]}  Kxa4 {[%clk 0:00:07]} 64. Kg5 {[%clk 0:00:04]}  b5 {[%clk 0:00:07]} 65. Kf6 {[%clk 0:00:04]}  Re4 {[%clk 0:00:06]} 66. Rc1 {[%clk 0:00:04]}  Rxd4 {[%clk 0:00:06]} 67. Rxc6 {[%clk 0:00:05]}  Rc4 {[%clk 0:00:07]} 68. Ra6+ {[%clk 0:00:05]}  Kb4 {[%clk 0:00:07]} 69. Ke5 {[%clk 0:00:05]}  Kc5 {[%clk 0:00:07]} 70. Ra8 {[%clk 0:00:05]}  Re4+ {[%clk 0:00:07]} 71. Kf5 {[%clk 0:00:05]}  Re1 {[%clk 0:00:08]} 72. Rc8+ {[%clk 0:00:05]}  Kd4 {[%clk 0:00:08]} 73. Rb8 {[%clk 0:00:05]}  Rb1 {[%clk 0:00:07]} 74. Kf4 {[%clk 0:00:06]}  Rf1+ {[%clk 0:00:07]} 75. Kg3 {[%clk 0:00:06]}  Rb1 {[%clk 0:00:07]} 76. Kf2 {[%clk 0:00:06]}  b4 {[%clk 0:00:07]} 77. Ke2 {[%clk 0:00:06]}  b3 {[%clk 0:00:08]} 78. Kd2 {[%clk 0:00:07]}  Kc4 {[%clk 0:00:05]} 79. Rc8+ {[%clk 0:00:07]}  Kb4 {[%clk 0:00:06]} 80. Rb8+ {[%clk 0:00:07]}  Ka3 {[%clk 0:00:06]} 81. Rb5 {[%clk 0:00:06]}  d4 {[%clk 0:00:06]} 82. Rb8 {[%clk 0:00:03]}  Rh1 {[%clk 0:00:05]} 83. Ra8+ {[%clk 0:00:02]}  Kb2 {[%clk 0:00:05]} 84. Rd8 {[%clk 0:00:01]}  Kb1 {[%clk 0:00:04]} 85. Rxd4 {[%clk 0:00:01]}  b2 {[%clk 0:00:04]} 86. Ra4 {[%clk 0:00:01]}  Rh2+ {[%clk 0:00:04]} 87. Kd1 {[%clk 0:00:01]}  Rh7 {[%clk 0:00:03]} 88. Ra8 {[%clk 0:00:01]}  Rd7+ {[%clk 0:00:03]} 89. Ke2 {[%clk 0:00:01]}  Rd4 {[%clk 0:00:04]} 90. Ke3 {[%clk 0:00:01]}  Rd5 {[%clk 0:00:02]} 91. Rb8 {[%clk 0:00:01]}  Kc2 {[%clk 0:00:02]} 92. Rc8+ {[%clk 0:00:01]}  Kb3 {[%clk 0:00:03]} 93. Rb8+ {[%clk 0:00:02]}  Kc3 {[%clk 0:00:03]} 94. Ke2 {[%clk 0:00:02]}  Rd4 {[%clk 0:00:03]} 95. Rc8+ {[%clk 0:00:02]}  Rc4 {[%clk 0:00:03]} 96. Rf8 {[%clk 0:00:02]}  b1=Q {[%clk 0:00:03]} 97. Kf2 {[%clk 0:00:03]}  Rd4 {[%clk 0:00:04]} 98. Kg2 {[%clk 0:00:03]}  Kd3 {[%clk 0:00:04]} 99. Rf2 {[%clk 0:00:03]}  Qc1 {[%clk 0:00:04]} 100. Rf3+ {[%clk 0:00:03]}  Ke4 {[%clk 0:00:04]} 101. Rf2 {[%clk 0:00:03]}  Rd2 {[%clk 0:00:04]} 102. Kg3 {[%clk 0:00:01]}  Rxf2 {[%clk 0:00:05]} 103. Kh3 {[%clk 0:00:01]}  Qe3+ {[%clk 0:00:03]} 104. Kh4 {[%clk 0:00:01]}  Qf4+ {[%clk 0:00:02]} 105. Kh3 {[%clk 0:00:01]}  Rh2# {[%clk 0:00:03]} 0-1


[Site "https://www.chess.com"]

[Event "Titled Tuesday Blitz April 18 Late 2023"]
[White "Omranalhosani21"]
[Black "Begmuratov, Alisher"]
[BlackFideId "14203367"]
[WhiteElo "2587"]
[BlackElo "2387"]
[Result "0-1"]
[Round "09"]
[TimeControl "180+2"]
[Date "2023.04.18"]
[WhiteClock "0:00:59"]
[BlackClock "0:01:24"]

1. d4 {[%clk 0:02:55]}  d5 {[%clk 0:02:59]} 2. c4 {[%clk 0:02:54]}  e6 {[%clk 0:02:59]} 3. Nc3 {[%clk 0:02:52]}  Nf6 {[%clk 0:02:59]} 4. e3 {[%clk 0:02:45]}  Be7 {[%clk 0:02:56]} 5. Nf3 {[%clk 0:02:45]}  O-O {[%clk 0:02:56]} 6. cxd5 {[%clk 0:02:44]}  exd5 {[%clk 0:02:56]} 7. Bd3 {[%clk 0:02:43]}  c5 {[%clk 0:02:55]} 8. O-O {[%clk 0:02:43]}  Nc6 {[%clk 0:02:55]} 9. dxc5 {[%clk 0:02:42]}  Bg4 {[%clk 0:02:48]} 10. Be2 {[%clk 0:02:40]}  Bxc5 {[%clk 0:02:48]} 11. Na4 {[%clk 0:02:37]}  Bd6 {[%clk 0:02:47]} 12. b3 {[%clk 0:02:37]}  Ne4 {[%clk 0:02:43]} 13. Bb2 {[%clk 0:02:36]}  Rc8 {[%clk 0:02:43]} 14. h3 {[%clk 0:02:34]}  Be6 {[%clk 0:02:38]} 15. Rc1 {[%clk 0:02:32]}  Qd7 {[%clk 0:02:38]} 16. Re1 {[%clk 0:02:05]}  Rfe8 {[%clk 0:02:17]} 17. Bf1 {[%clk 0:02:03]}  Nb4 {[%clk 0:02:04]} 18. a3 {[%clk 0:01:52]}  Nc6 {[%clk 0:02:02]} 19. Nd4 {[%clk 0:01:45]}  Bb8 {[%clk 0:01:55]} 20. Nxc6 {[%clk 0:01:41]}  Rxc6 {[%clk 0:01:51]} 21. Rxc6 {[%clk 0:01:27]}  bxc6 {[%clk 0:01:52]} 22. Qd4 {[%clk 0:01:23]}  f6 {[%clk 0:01:48]} 23. Nc5 {[%clk 0:01:18]}  Qd6 {[%clk 0:01:43]} 24. f4 {[%clk 0:01:08]}  Nxc5 {[%clk 0:01:40]} 25. Rc1 {[%clk 0:01:06]}  Nxb3 {[%clk 0:01:39]} 26. Qd1 {[%clk 0:01:03]}  Nxc1 {[%clk 0:01:38]} 27. Qxc1 {[%clk 0:01:04]}  Bc7 {[%clk 0:01:38]} 28. a4 {[%clk 0:01:01]}  Bb6 {[%clk 0:01:38]} 29. Kh2 {[%clk 0:01:02]}  Bf7 {[%clk 0:01:36]} 30. Ba3 {[%clk 0:00:59]}  Qd7 {[%clk 0:01:30]} 31. Bc5 {[%clk 0:00:58]}  Bxc5 {[%clk 0:01:29]} 32. Qxc5 {[%clk 0:00:59]}  Qe7 {[%clk 0:01:28]} 33. Qxc6 {[%clk 0:00:59]}  Qxe3 {[%clk 0:01:28]} 34. Qc7 {[%clk 0:00:59]}  g5 {[%clk 0:01:25]} 35. fxg5 {[%clk 0:00:59]}  Qe5+ {[%clk 0:01:24]} 0-1


[Site "https://www.chess.com"]

[Event "Titled Tuesday Blitz April 18 Late 2023"]
[White "Bilych, Olexiy"]
[Black "Melikyan, Gnel"]
[WhiteFideId "14156504"]
[BlackFideId "54109990"]
[WhiteElo "2320"]
[BlackElo "2138"]
[Result "1-0"]
[Round "09"]
[TimeControl "180+2"]
[Date "2023.04.18"]
[WhiteClock "0:00:26"]
[BlackClock "0:00:04"]

1. d4 {[%clk 0:03:00]}  Nf6 {[%clk 0:01:13]} 2. c4 {[%clk 0:03:00]}  g6 {[%clk 0:01:13]} 3. Nc3 {[%clk 0:03:00]}  Bg7 {[%clk 0:01:13]} 4. e4 {[%clk 0:03:01]}  d6 {[%clk 0:01:14]} 5. Be2 {[%clk 0:03:01]}  O-O {[%clk 0:01:14]} 6. Be3 {[%clk 0:03:01]}  Nc6 {[%clk 0:01:11]} 7. d5 {[%clk 0:03:00]}  Ne5 {[%clk 0:01:11]} 8. f4 {[%clk 0:03:00]}  Ned7 {[%clk 0:01:11]} 9. Nf3 {[%clk 0:02:58]}  Re8 {[%clk 0:01:11]} 10. O-O {[%clk 0:02:57]}  e6 {[%clk 0:01:11]} 11. dxe6 {[%clk 0:02:54]}  Rxe6 {[%clk 0:01:11]} 12. Nd4 {[%clk 0:02:54]}  Re8 {[%clk 0:01:10]} 13. Bf3 {[%clk 0:02:00]}  Nc5 {[%clk 0:01:08]} 14. Qc2 {[%clk 0:01:51]}  Bg4 {[%clk 0:01:07]} 15. Rae1 {[%clk 0:01:33]}  Bxf3 {[%clk 0:01:04]} 16. gxf3 {[%clk 0:01:33]}  Nh5 {[%clk 0:01:02]} 17. Nde2 {[%clk 0:01:17]}  Qh4 {[%clk 0:00:58]} 18. Nd5 {[%clk 0:01:12]}  Ne6 {[%clk 0:00:52]} 19. Bf2 {[%clk 0:01:03]}  Qh3 {[%clk 0:00:52]} 20. Bg3 {[%clk 0:00:51]}  Nd4 {[%clk 0:00:35]} 21. Nxd4 {[%clk 0:00:48]}  Bxd4+ {[%clk 0:00:35]} 22. Bf2 {[%clk 0:00:48]}  Bxf2+ {[%clk 0:00:34]} 23. Rxf2 {[%clk 0:00:49]}  Rac8 {[%clk 0:00:31]} 24. Qc3 {[%clk 0:00:47]}  Qh4 {[%clk 0:00:28]} 25. Rg2 {[%clk 0:00:41]}  c6 {[%clk 0:00:27]} 26. Rg4 {[%clk 0:00:40]}  Qd8 {[%clk 0:00:20]} 27. Ne3 {[%clk 0:00:40]}  Nf6 {[%clk 0:00:14]} 28. Rg2 {[%clk 0:00:35]}  d5 {[%clk 0:00:14]} 29. Rd1 {[%clk 0:00:31]}  Qe7 {[%clk 0:00:08]} 30. Nf5 {[%clk 0:00:28]}  Qc5+ {[%clk 0:00:06]} 31. Kh1 {[%clk 0:00:26]}  dxe4 {[%clk 0:00:05]} 32. Qxf6 {[%clk 0:00:26]}  exf3 {[%clk 0:00:04]} 33. Qg7# {[%clk 0:00:26]} 1-0


[Site "https://www.chess.com"]

[Event "Titled Tuesday Blitz April 18 Late 2023"]
[White "Weetik, Vjacheslav"]
[Black "Ronka, Erik"]
[WhiteFideId "4153472"]
[BlackFideId "505080"]
[WhiteElo "2469"]
[BlackElo "2264"]
[Result "1-0"]
[Round "09"]
[TimeControl "180+2"]
[Date "2023.04.18"]
[WhiteClock "0:01:58"]
[BlackClock "0:01:06"]

1. d4 {[%clk 0:02:59]}  Nf6 {[%clk 0:02:59]} 2. Bf4 {[%clk 0:02:59]}  g6 {[%clk 0:02:53]} 3. Nf3 {[%clk 0:02:58]}  Bg7 {[%clk 0:02:53]} 4. e3 {[%clk 0:02:59]}  O-O {[%clk 0:02:54]} 5. c4 {[%clk 0:03:00]}  d6 {[%clk 0:02:51]} 6. Nc3 {[%clk 0:02:59]}  c5 {[%clk 0:02:42]} 7. d5 {[%clk 0:02:53]}  b5 {[%clk 0:02:33]} 8. cxb5 {[%clk 0:02:47]}  a6 {[%clk 0:02:33]} 9. a4 {[%clk 0:02:48]}  Qa5 {[%clk 0:02:23]} 10. Nd2 {[%clk 0:02:43]}  axb5 {[%clk 0:02:09]} 11. Bxb5 {[%clk 0:02:41]}  Ba6 {[%clk 0:01:32]} 12. O-O {[%clk 0:02:30]}  Nbd7 {[%clk 0:01:26]} 13. Nc4 {[%clk 0:02:16]}  Qc7 {[%clk 0:01:25]} 14. h3 {[%clk 0:02:09]}  Rfb8 {[%clk 0:01:24]} 15. Qe2 {[%clk 0:02:02]}  Nb6 {[%clk 0:01:11]} 16. Bxa6 {[%clk 0:01:57]}  Rxa6 {[%clk 0:01:06]} 17. Nxd6 {[%clk 0:01:58]} 1-0


[Site "https://www.chess.com"]

[Event "Titled Tuesday Blitz April 18 Late 2023"]
[White "Tregubov, Pavel V."]
[Black "Gonzalez, Francisco Silva"]
[WhiteFideId "4115341"]
[BlackFideId "1512285"]
[WhiteElo "2425"]
[BlackElo "2074"]
[Result "1-0"]
[Round "09"]
[TimeControl "180+2"]
[Date "2023.04.18"]
[WhiteClock "0:02:18"]
[BlackClock "0:02:24"]

1. e4 {[%clk 0:03:00]}  e5 {[%clk 0:02:59]} 2. Nf3 {[%clk 0:03:01]}  Nc6 {[%clk 0:02:58]} 3. Bb5 {[%clk 0:03:01]}  a6 {[%clk 0:02:59]} 4. Ba4 {[%clk 0:03:01]}  Nf6 {[%clk 0:02:59]} 5. d4 {[%clk 0:03:02]}  exd4 {[%clk 0:02:59]} 6. O-O {[%clk 0:03:01]}  Be7 {[%clk 0:02:59]} 7. e5 {[%clk 0:03:01]}  Ne4 {[%clk 0:02:58]} 8. Nxd4 {[%clk 0:03:02]}  O-O {[%clk 0:02:57]} 9. Nf5 {[%clk 0:03:02]}  d5 {[%clk 0:02:51]} 10. Nxe7+ {[%clk 0:03:02]}  Nxe7 {[%clk 0:02:50]} 11. c3 {[%clk 0:03:03]}  Nc5 {[%clk 0:02:48]} 12. Bc2 {[%clk 0:03:03]}  Bf5 {[%clk 0:02:47]} 13. Na3 {[%clk 0:03:03]}  Qd7 {[%clk 0:02:45]} 14. Be3 {[%clk 0:03:01]}  Bxc2 {[%clk 0:02:44]} 15. Nxc2 {[%clk 0:03:01]}  Na4 {[%clk 0:02:42]} 16. Rb1 {[%clk 0:02:51]}  Nf5 {[%clk 0:02:41]} 17. Qd3 {[%clk 0:02:40]}  Rfe8 {[%clk 0:02:39]} 18. f4 {[%clk 0:02:36]}  Qb5 {[%clk 0:02:32]} 19. Qxf5 {[%clk 0:02:33]}  g6 {[%clk 0:02:27]} 20. Qh3 {[%clk 0:02:23]}  Nxb2 {[%clk 0:02:24]} 21. Nd4 {[%clk 0:02:18]} 1-0


[Site "https://www.chess.com"]

[Event "Titled Tuesday Blitz April 18 Late 2023"]
[White "Pesotskiy, Mikhail"]
[Black "Amburgy, Ryan"]
[WhiteFideId "34164453"]
[BlackFideId "30924820"]
[WhiteElo "2131"]
[BlackElo "2134"]
[Result "1-0"]
[Round "09"]
[TimeControl "180+2"]
[Date "2023.04.18"]
[WhiteClock "0:00:58"]
[BlackClock "0:00:02"]

1. d4 {[%clk 0:02:59]}  Nf6 {[%clk 0:02:59]} 2. c4 {[%clk 0:02:58]}  e6 {[%clk 0:03:00]} 3. Nc3 {[%clk 0:02:59]}  Bb4 {[%clk 0:03:00]} 4. Qc2 {[%clk 0:03:00]}  d5 {[%clk 0:03:00]} 5. a3 {[%clk 0:03:00]}  Bxc3+ {[%clk 0:03:00]} 6. Qxc3 {[%clk 0:03:01]}  O-O {[%clk 0:03:00]} 7. Bg5 {[%clk 0:03:01]}  h6 {[%clk 0:02:58]} 8. Bxf6 {[%clk 0:03:01]}  Qxf6 {[%clk 0:02:58]} 9. cxd5 {[%clk 0:03:02]}  exd5 {[%clk 0:02:59]} 10. Nf3 {[%clk 0:03:02]}  c6 {[%clk 0:02:44]} 11. e3 {[%clk 0:03:01]}  Nd7 {[%clk 0:02:41]} 12. Bd3 {[%clk 0:03:00]}  Re8 {[%clk 0:02:40]} 13. O-O {[%clk 0:03:00]}  Nb6 {[%clk 0:02:32]} 14. a4 {[%clk 0:02:48]}  Bf5 {[%clk 0:02:31]} 15. Bxf5 {[%clk 0:02:40]}  Qxf5 {[%clk 0:02:31]} 16. a5 {[%clk 0:02:41]}  Nc4 {[%clk 0:02:13]} 17. a6 {[%clk 0:02:41]}  b6 {[%clk 0:01:55]} 18. b3 {[%clk 0:02:27]}  Na5 {[%clk 0:01:55]} 19. Nd2 {[%clk 0:02:14]}  Qe6 {[%clk 0:01:33]} 20. Rfc1 {[%clk 0:02:11]}  Rac8 {[%clk 0:01:03]} 21. b4 {[%clk 0:02:10]}  Nc4 {[%clk 0:01:04]} 22. Nxc4 {[%clk 0:02:11]}  dxc4 {[%clk 0:01:04]} 23. Qxc4 {[%clk 0:02:12]}  Qxc4 {[%clk 0:01:05]} 24. Rxc4 {[%clk 0:02:12]}  Re7 {[%clk 0:00:52]} 25. Rac1 {[%clk 0:02:11]}  Rec7 {[%clk 0:00:52]} 26. e4 {[%clk 0:01:46]}  f6 {[%clk 0:00:43]} 27. f4 {[%clk 0:01:33]}  Kf7 {[%clk 0:00:41]} 28. d5 {[%clk 0:01:32]}  c5 {[%clk 0:00:41]} 29. bxc5 {[%clk 0:01:32]}  Rxc5 {[%clk 0:00:33]} 30. Rxc5 {[%clk 0:01:25]}  bxc5 {[%clk 0:00:33]} 31. Kf2 {[%clk 0:01:25]}  g5 {[%clk 0:00:19]} 32. g3 {[%clk 0:01:22]}  gxf4 {[%clk 0:00:19]} 33. gxf4 {[%clk 0:01:23]}  Ke7 {[%clk 0:00:20]} 34. e5 {[%clk 0:01:24]}  fxe5 {[%clk 0:00:21]} 35. fxe5 {[%clk 0:01:25]}  Kd7 {[%clk 0:00:19]} 36. Ke3 {[%clk 0:01:21]}  Rg8 {[%clk 0:00:08]} 37. Rxc5 {[%clk 0:01:15]}  Rg2 {[%clk 0:00:08]} 38. Rb5 {[%clk 0:01:12]}  Rxh2 {[%clk 0:00:09]} 39. Rb7+ {[%clk 0:01:12]}  Kc8 {[%clk 0:00:10]} 40. e6 {[%clk 0:01:08]}  Rh1 {[%clk 0:00:08]} 41. Kd4 {[%clk 0:01:07]}  Re1 {[%clk 0:00:08]} 42. e7 {[%clk 0:01:03]}  h5 {[%clk 0:00:08]} 43. d6 {[%clk 0:01:03]}  Rd1+ {[%clk 0:00:08]} 44. Ke5 {[%clk 0:01:02]}  Re1+ {[%clk 0:00:08]} 45. Kf6 {[%clk 0:01:00]}  Rf1+ {[%clk 0:00:07]} 46. Kg6 {[%clk 0:00:59]}  Rg1+ {[%clk 0:00:07]} 47. Kh6 {[%clk 0:00:59]}  Rg8 {[%clk 0:00:02]} 48. d7# {[%clk 0:00:58]} 1-0


[Site "https://www.chess.com"]

[Event "Titled Tuesday Blitz April 18 Late 2023"]
[White "Moral Garcia, Serafin"]
[Black "Kosteniuk, Alexandra"]
[WhiteFideId "2201925"]
[BlackFideId "4128125"]
[WhiteElo "2274"]
[BlackElo "2453"]
[Result "0-1"]
[Round "09"]
[TimeControl "180+2"]
[Date "2023.04.18"]
[WhiteClock "0:00:13"]
[BlackClock "0:00:07"]

1. Nf3 {[%clk 0:03:00]}  f5 {[%clk 0:02:59]} 2. b3 {[%clk 0:03:00]}  Nf6 {[%clk 0:02:59]} 3. Bb2 {[%clk 0:03:00]}  Nc6 {[%clk 0:02:57]} 4. c4 {[%clk 0:03:00]}  d6 {[%clk 0:02:56]} 5. d4 {[%clk 0:02:59]}  a5 {[%clk 0:02:46]} 6. a3 {[%clk 0:02:56]}  e6 {[%clk 0:02:44]} 7. e3 {[%clk 0:02:55]}  Ne7 {[%clk 0:02:40]} 8. Bd3 {[%clk 0:02:53]}  Ng6 {[%clk 0:02:39]} 9. O-O {[%clk 0:02:49]}  Be7 {[%clk 0:02:39]} 10. Nc3 {[%clk 0:02:47]}  O-O {[%clk 0:02:34]} 11. Re1 {[%clk 0:02:46]}  Ng4 {[%clk 0:02:25]} 12. h3 {[%clk 0:02:43]}  Nh6 {[%clk 0:02:15]} 13. e4 {[%clk 0:02:39]}  Nf4 {[%clk 0:02:14]} 14. Bf1 {[%clk 0:02:37]}  fxe4 {[%clk 0:02:07]} 15. Nxe4 {[%clk 0:02:34]}  Qe8 {[%clk 0:02:02]} 16. Ng3 {[%clk 0:02:23]}  Qf7 {[%clk 0:01:58]} 17. Re3 {[%clk 0:02:16]}  b6 {[%clk 0:01:33]} 18. Qd2 {[%clk 0:02:13]}  Bb7 {[%clk 0:01:31]} 19. Kh2 {[%clk 0:02:07]}  Qg6 {[%clk 0:01:20]} 20. Rae1 {[%clk 0:01:56]}  Rae8 {[%clk 0:01:15]} 21. d5 {[%clk 0:01:41]}  e5 {[%clk 0:01:13]} 22. Ne2 {[%clk 0:01:23]}  Nxe2 {[%clk 0:00:54]} 23. Bxe2 {[%clk 0:01:17]}  Nf5 {[%clk 0:00:53]} 24. Bd3 {[%clk 0:01:13]}  Qh6 {[%clk 0:00:53]} 25. R3e2 {[%clk 0:01:08]}  Qxd2 {[%clk 0:00:33]} 26. Rxd2 {[%clk 0:01:01]}  Bc8 {[%clk 0:00:32]} 27. Rde2 {[%clk 0:00:59]}  Nh6 {[%clk 0:00:28]} 28. Be4 {[%clk 0:00:46]}  Bf6 {[%clk 0:00:25]} 29. Bc1 {[%clk 0:00:45]}  Nf7 {[%clk 0:00:21]} 30. Be3 {[%clk 0:00:43]}  Bd7 {[%clk 0:00:21]} 31. Ra2 {[%clk 0:00:38]}  Ra8 {[%clk 0:00:20]} 32. Rea1 {[%clk 0:00:38]}  Ra7 {[%clk 0:00:17]} 33. Bd2 {[%clk 0:00:33]}  Rfa8 {[%clk 0:00:16]} 34. Kg1 {[%clk 0:00:30]}  g6 {[%clk 0:00:17]} 35. Kf1 {[%clk 0:00:30]}  Bf5 {[%clk 0:00:17]} 36. Re1 {[%clk 0:00:28]}  Rf8 {[%clk 0:00:15]} 37. Re2 {[%clk 0:00:28]}  Nd8 {[%clk 0:00:13]} 38. Ke1 {[%clk 0:00:26]}  Nb7 {[%clk 0:00:13]} 39. Bxf5 {[%clk 0:00:19]}  gxf5 {[%clk 0:00:13]} 40. b4 {[%clk 0:00:19]}  axb4 {[%clk 0:00:13]} 41. Bxb4 {[%clk 0:00:19]}  e4 {[%clk 0:00:13]} 42. Nd2 {[%clk 0:00:19]}  Bd4 {[%clk 0:00:12]} 43. f3 {[%clk 0:00:18]}  exf3 {[%clk 0:00:08]} 44. Nxf3 {[%clk 0:00:19]}  Bf6 {[%clk 0:00:09]} 45. Kd2 {[%clk 0:00:18]}  Nc5 {[%clk 0:00:09]} 46. Bxc5 {[%clk 0:00:18]}  bxc5 {[%clk 0:00:09]} 47. Re3 {[%clk 0:00:18]}  Rfa8 {[%clk 0:00:09]} 48. Rb3 {[%clk 0:00:18]}  Ra4 {[%clk 0:00:09]} 49. Kd3 {[%clk 0:00:17]}  R8a7 {[%clk 0:00:08]} 50. Nd2 {[%clk 0:00:18]}  Ra8 {[%clk 0:00:08]} 51. Nb1 {[%clk 0:00:18]}  Be5 {[%clk 0:00:08]} 52. Nc3 {[%clk 0:00:17]}  Bxc3 {[%clk 0:00:08]} 53. Kxc3 {[%clk 0:00:18]}  Kf7 {[%clk 0:00:08]} 54. Rf2 {[%clk 0:00:18]}  Kg6 {[%clk 0:00:08]} 55. Kb2 {[%clk 0:00:17]}  Re8 {[%clk 0:00:08]} 56. Rg3+ {[%clk 0:00:17]}  Kf6 {[%clk 0:00:07]} 57. Rc3 {[%clk 0:00:17]}  Re4 {[%clk 0:00:07]} 58. Kb3 {[%clk 0:00:16]}  Ra8 {[%clk 0:00:07]} 59. Rb2 {[%clk 0:00:16]}  Ke5 {[%clk 0:00:05]} 60. a4 {[%clk 0:00:15]}  Rb8+ {[%clk 0:00:06]} 61. Ka3 {[%clk 0:00:16]}  Ra8 {[%clk 0:00:05]} 62. Rb7 {[%clk 0:00:15]}  Kd4 {[%clk 0:00:06]} 63. Rcb3 {[%clk 0:00:14]}  Kxc4 {[%clk 0:00:05]} 64. Rxc7 {[%clk 0:00:14]}  Kxd5 {[%clk 0:00:06]} 65. Rxh7 {[%clk 0:00:14]}  Raxa4+ {[%clk 0:00:06]} 66. Kb2 {[%clk 0:00:14]}  Re2+ {[%clk 0:00:06]} 67. Kc3 {[%clk 0:00:14]}  Re3+ {[%clk 0:00:06]} 68. Kb2 {[%clk 0:00:14]}  Re2+ {[%clk 0:00:07]} 69. Kc3 {[%clk 0:00:14]}  Rc4+ {[%clk 0:00:07]} 70. Kd3 {[%clk 0:00:14]}  Rxg2 {[%clk 0:00:08]} 71. Rb6 {[%clk 0:00:13]}  Rg3+ {[%clk 0:00:08]} 72. Kd2 {[%clk 0:00:13]}  Ra4 {[%clk 0:00:07]} 73. Rd7 {[%clk 0:00:13]}  Ra2+ {[%clk 0:00:07]} 0-1


[Site "https://www.chess.com"]